[Event "Allauch FRA, 5th Open"]
[Site "Allauch FRA"]
[Date "2023.09.01"]
[Round "8.1"]
[White "Golubka, Petro"]
[Black "Petrosyan, Armen"]
[Result "1/2-1/2"]
[ECO "B12"]
[WhiteElo "2421"]
[BlackElo "2360"]
[WhiteFideId "-1"]
[BlackFideId "-1"]
[PlyCount "185"]
[GameId "2129404705514015"]
[EventDate "2023.08.28"]
[EventType "swiss"]
[EventRounds "9"]
[EventCountry "FRA"]
[SourceTitle "10 Days #735"]
[Source "ChessMix "]
[SourceDate "2023.09.20"]
[SourceVersion "1"]
[SourceVersionDate "2023.09.20"]
[SourceQuality "1"]
[TimeControl "1"]

1. e4 {[%emt 0:00:00]} c6 {[%emt 0:00:00]} 2. d4 {[%emt 0:00:00]} d5 {[%emt 0:00:00]} 3. e5 {[%emt 0:00:00]} Bf5 {[%emt 0:00:00]} 4. g4 {[%emt 0:00:00]} Be4 {[%emt 0:00:00]} 5. f3 {[%emt 0:00:00]} Bg6 {[%emt 0:00:00]} 6. e6 {[%emt 0:00:00]} fxe6 {[%emt 0:00:00]} 7. h4 {[%emt 0:00:00]} h5 {[%emt 0:00:00]} 8. Bd3 {[%emt 0:00:00]} Bxd3 {[%emt 0:00:00]} 9. Qxd3 {[%emt 0:00:00]} Qd6 {[%emt 0:00:00]} 10. Qg6+ {[%emt 0:00:00]} Kd8 {[%emt 0:00:00]} 11. Bg5 {[%emt 0:00:00]} Nf6 {[%emt 0:00:00]} 12. Ne2 {[%emt 0:00:00]} Nbd7 {[%emt 0:00:00]} 13. Nd2 {[%emt 0:00:00]} e5 {[%emt 0:00:00]} 14. O-O-O {[%emt 0:00:00]} Kc7 {[%emt 0:00:00]} 15. Qf7 {[%emt 0:00:00]} exd4 {[%emt 0:00:00]} 16. f4 {[%emt 0:00:00]} c5 {[%emt 0:00:00]} 17. gxh5 {[%emt 0:00:00]} Ng4 {[%emt 0:00:00]} 18. Ng3 {[%emt 0:00:00]} e6 {[%emt 0:00:00]} 19. Rhe1 {[%emt 0:00:00]} Ne3 {[%emt 0:00:00]} 20. Rxe3 {[%emt 0:00:00]} dxe3 {[%emt 0:00:00]} 21. Nc4 {[%emt 0:00:00]} dxc4 {[%emt 0:00:00]} 22. Rxd6 {[%emt 0:00:00]} Bxd6 {[%emt 0:00:00]} 23. Qxg7 {[%emt 0:00:00]} Rhg8 {[%emt 0:00:00]} 24. Qc3 {[%emt 0:00:00]} Rxg5 {[%emt 0:00:00]} 25. fxg5 {[%emt 0:00:00]} Bxg3 {[%emt 0:00:00]} 26. Qxe3 {[%emt 0:00:00]} Be5 {[%emt 0:00:00]} 27. h6 {[%emt 0:00:00]} Rf8 {[%emt 0:00:00]} 28. Kd1 {[%emt 0:00:00]} Rf1+ {[%emt 0:00:00]} 29. Ke2 {[%emt 0:00:00]} Rh1 {[%emt 0:00:00]} 30. Qe4 {[%emt 0:00:00]} Rh2+ {[%emt 0:00:00]} 31. Kf3 {[%emt 0:00:00]} Rd2 {[%emt 0:00:00]} 32. c3 {[%emt 0:00:00]} Kd6 {[%emt 0:00:00]} 33. Qxb7 {[%emt 0:00:00]} Rh2 {[%emt 0:00:00]} 34. Kg4 {[%emt 0:00:00]} Rf2 {[%emt 0:00:00]} 35. h7 {[%emt 0:00:00]} Rf7 {[%emt 0:00:00]} 36. Qe4 {[%emt 0:00:00]} Bh8 {[%emt 0:00:00]} 37. h5 {[%emt 0:00:00]} Ne5+ {[%emt 0:00:00]} 38. Kg3 {[%emt 0:00:00]} Rf5 {[%emt 0:00:00]} 39. Qa8 {[%emt 0:00:00]} Rxg5+ {[%emt 0:00:00]} 40. Kf4 {[%emt 0:00:00]} Rf5+ {[%emt 0:00:00]} 41. Ke4 {[%emt 0:00:00]} Nf7 {[%emt 0:00:00]} 42. Qxa7 {[%emt 0:00:00]} Re5+ {[%emt 0:00:00]} 43. Kf3 {[%emt 0:00:00]} Rxh5 {[%emt 0:00:00]} 44. Qb8+ {[%emt 0:00:00]} Ke7 {[%emt 0:00:00]} 45. a4 {[%emt 0:00:00]} Rxh7 {[%emt 0:00:00]} 46. a5 {[%emt 0:00:00]} Ne5+ {[%emt 0:00:00]} 47. Kg2 {[%emt 0:00:00]} Rg7+ {[%emt 0:00:00]} 48. Kf1 {[%emt 0:00:00]} Rf7+ {[%emt 0:00:00]} 49. Ke2 {[%emt 0:00:00]} Bg7 {[%emt 0:00:00]} 50. a6 {[%emt 0:00:00]} Nd3 {[%emt 0:00:00]} 51. a7 {[%emt 0:00:00]} Rf2+ {[%emt 0:00:00]} 52. Ke3 {[%emt 0:00:00]} Bh6+ {[%emt 0:00:00]} 53. Ke4 {[%emt 0:00:00]} Rf5 {[%emt 0:00:00]} 54. Qc7+ {[%emt 0:00:00]} Kf6 {[%emt 0:00:00]} 55. Qd8+ {[%emt 0:00:00]} Kf7 {[%emt 0:00:00]} 56. Qh4 {[%emt 0:00:00]} Nf2+ {[%emt 0:00:00]} 57. Qxf2 {[%emt 0:00:00]} Rxf2 {[%emt 0:00:00]} 58. a8=Q {[%emt 0:00:00]} Re2+ {[%emt 0:00:00]} 59. Kf3 {[%emt 0:00:00]} Rxb2 {[%emt 0:00:00]} 60. Qa7+ {[%emt 0:00:00]} Kf6 {[%emt 0:00:00]} 61. Qxc5 {[%emt 0:00:00]} Rc2 {[%emt 0:00:00]} 62. Qd4+ {[%emt 0:00:00]} Kf7 {[%emt 0:00:00]} 63. Qd7+ {[%emt 0:00:00]} Kf6 {[%emt 0:00:00]} 64. Qd8+ {[%emt 0:00:00]} Kf7 {[%emt 0:00:00]} 65. Qc7+ {[%emt 0:00:00]} Kf6 {[%emt 0:00:00]} 66. Qxc4 {[%emt 0:00:00]} Rc1 {[%emt 0:00:00]} 67. Qd4+ {[%emt 0:00:00]} Kf7 {[%emt 0:00:00]} 68. c4 {[%emt 0:00:00]} Rf1+ {[%emt 0:00:00]} 69. Ke2 {[%emt 0:00:00]} Rf5 {[%emt 0:00:00]} 70. Qd7+ {[%emt 0:00:00]} Kf6 {[%emt 0:00:00]} 71. Qd8+ {[%emt 0:00:00]} Kf7 {[%emt 0:00:00]} 72. Qc7+ {[%emt 0:00:00]} Ke8 {[%emt 0:00:00]} 73. c5 {[%emt 0:00:00]} Bf4 {[%emt 0:00:00]} 74. Qc8+ {[%emt 0:00:00]} Ke7 {[%emt 0:00:00]} 75. Kd3 {[%emt 0:00:00]} Rf8 {[%emt 0:00:00]} 76. Qb7+ {[%emt 0:00:00]} Kf6 {[%emt 0:00:00]} 77. Ke4 {[%emt 0:00:00]} Rf7 {[%emt 0:00:00]} 78. Qb6 {[%emt 0:00:00]} Bc7 {[%emt 0:00:00]} 79. Qc6 {[%emt 0:00:00]} Rg7 {[%emt 0:00:00]} 80. Qe8 {[%emt 0:00:00]} Rf7 {[%emt 0:00:00]} 81. Kd3 {[%emt 0:00:00]} Rh7 {[%emt 0:00:00]} 82. Kc4 {[%emt 0:00:00]} Rg7 {[%emt 0:00:00]} 83. Kb5 {[%emt 0:00:00]} Be5 {[%emt 0:00:00]} 84. Qf8+ {[%emt 0:00:00]} Rf7 {[%emt 0:00:00]} 85. Qh6+ {[%emt 0:00:00]} Kf5 {[%emt 0:00:00]} 86. c6 {[%emt 0:00:00]} Bf4 {[%emt 0:00:00]} 87. Qh5+ {[%emt 0:00:00]} Kf6 {[%emt 0:00:00]} 88. Qd1 {[%emt 0:00:00]} Bc7 {[%emt 0:00:00]} 89. Ka6 {[%emt 0:00:00]} Ke5 {[%emt 0:00:00]} 90. Kb7 {[%emt 0:00:00]} Bd6+ {[%emt 0:00:00]} 91. Kb6 {[%emt 0:00:00]} Bc7+ {[%emt 0:00:00]} 92. Kb7 {[%emt 0:00:00]} Bd6+ {[%emt 0:00:00]} 93. Kb6 {[%emt 0:00:00]} 1/2-1/2

[Event "Allauch FRA, 5th Open"]
[Site "Allauch FRA"]
[Date "2023.09.02"]
[Round "9.3"]
[White "Massardo, Quentin"]
[Black "Golubka, Petro"]
[Result "0-1"]
[ECO "B53"]
[WhiteElo "1990"]
[BlackElo "2421"]
[WhiteFideId "-1"]
[BlackFideId "-1"]
[PlyCount "60"]
[GameId "2129404705514025"]
[EventDate "2023.08.28"]
[EventType "swiss"]
[EventRounds "9"]
[EventCountry "FRA"]
[SourceTitle "10 Days #735"]
[Source "ChessMix "]
[SourceDate "2023.09.20"]
[SourceVersion "1"]
[SourceVersionDate "2023.09.20"]
[SourceQuality "1"]
[TimeControl "1"]

1. e4 {[%emt 0:00:00]} c5 {[%emt 0:00:00]} 2. Nf3 {[%emt 0:00:00]} d6 {[%emt 0:00:00]} 3. d4 {[%emt 0:00:00]} cxd4 {[%emt 0:00:00]} 4. Qxd4 {[%emt 0:00:00]} a6 {[%emt 0:00:00]} 5. c4 {[%emt 0:00:00]} Nc6 {[%emt 0:00:00]} 6. Qe3 {[%emt 0:00:00]} h5 {[%emt 0:00:00]} 7. Be2 {[%emt 0:00:00]} g6 {[%emt 0:00:00]} 8. O-O {[%emt 0:00:00]} Bh6 {[%emt 0:00:00]} 9. Qc3 {[%emt 0:00:00]} e5 {[%emt 0:00:00]} 10. Bxh6 {[%emt 0:00:00]} Rxh6 {[%emt 0:00:00]} 11. c5 {[%emt 0:00:00]} Bg4 {[%emt 0:00:00]} 12. Rd1 {[%emt 0:00:00]} g5 {[%emt 0:00:00]} 13. Na3 {[%emt 0:00:00]} Bxf3 {[%emt 0:00:00]} 14. Bxf3 {[%emt 0:00:00]} g4 {[%emt 0:00:00]} 15. Be2 {[%emt 0:00:00]} Nd4 {[%emt 0:00:00]} 16. Rxd4 {[%emt 0:00:00]} exd4 {[%emt 0:00:00]} 17. Qxd4 {[%emt 0:00:00]} dxc5 {[%emt 0:00:00]} 18. Qxc5 {[%emt 0:00:00]} Rc8 {[%emt 0:00:00]} 19. Qe3 {[%emt 0:00:00]} b5 {[%emt 0:00:00]} 20. Rd1 {[%emt 0:00:00]} Rd6 {[%emt 0:00:00]} 21. Rxd6 {[%emt 0:00:00]} Qxd6 {[%emt 0:00:00]} 22. h3 {[%emt 0:00:00]} Qc5 {[%emt 0:00:00]} 23. Qxc5 {[%emt 0:00:00]} Rxc5 {[%emt 0:00:00]} 24. hxg4 {[%emt 0:00:00]} hxg4 {[%emt 0:00:00]} 25. Kh2 {[%emt 0:00:00]} Nf6 {[%emt 0:00:00]} 26. Bd3 {[%emt 0:00:00]} Nd7 {[%emt 0:00:00]} 27. Kg3 {[%emt 0:00:00]} Ne5 {[%emt 0:00:00]} 28. Be2 {[%emt 0:00:00]} b4 {[%emt 0:00:00]} 29. Nb1 {[%emt 0:00:00]} Rc2 {[%emt 0:00:00]} 30. Kf4 {[%emt 0:00:00]} Rxe2 {[%emt 0:00:00]} 0-1

[Event "Salon de Provence op"]
[Site "Salon de Provence FRA"]
[Date "2023.07.09"]
[Round "2.2"]
[White "Busson, Benoit"]
[Black "Golubka, Petro"]
[Result "0-1"]
[ECO "D04"]
[WhiteElo "1871"]
[BlackElo "2383"]
[WhiteFideId "-1"]
[BlackFideId "-1"]
[PlyCount "64"]
[GameId "2129404707693858"]
[EventDate "2023.07.08"]
[EventType "swiss"]
[EventRounds "9"]
[EventCountry "FRA"]
[SourceTitle "10 Days #729"]
[Source "ChessMix"]
[SourceDate "2023.07.20"]
[SourceVersion "1"]
[SourceVersionDate "2023.07.20"]
[SourceQuality "1"]
[TimeControl "1"]

1. d4 {[%emt 0:00:00]} d5 {[%emt 0:00:00]} 2. Nf3 {[%emt 0:00:00]} a6 {[%emt 0:00:00]} 3. e3 {[%emt 0:00:00]} Nf6 {[%emt 0:00:00]} 4. Bd3 {[%emt 0:00:00]} e6 {[%emt 0:00:00]} 5. Nbd2 {[%emt 0:00:00]} b6 {[%emt 0:00:00]} 6. O-O {[%emt 0:00:00]} Bb7 {[%emt 0:00:00]} 7. Ne5 {[%emt 0:00:00]} c5 {[%emt 0:00:00]} 8. c3 {[%emt 0:00:00]} Nc6 {[%emt 0:00:00]} 9. f4 {[%emt 0:00:00]} Bd6 {[%emt 0:00:00]} 10. Ndf3 {[%emt 0:00:00]} h6 {[%emt 0:00:00]} 11. Bd2 {[%emt 0:00:00]} Ne7 {[%emt 0:00:00]} 12. Be1 {[%emt 0:00:00]} Ne4 {[%emt 0:00:00]} 13. Nh4 {[%emt 0:00:00]} g6 {[%emt 0:00:00]} 14. a3 {[%emt 0:00:00]} O-O {[%emt 0:00:00]} 15. Qg4 {[%emt 0:00:00]} f5 {[%emt 0:00:00]} 16. Qh3 {[%emt 0:00:00]} Bxe5 {[%emt 0:00:00]} 17. fxe5 {[%emt 0:00:00]} g5 {[%emt 0:00:00]} 18. Nf3 {[%emt 0:00:00]} Kg7 {[%emt 0:00:00]} 19. Bxe4 {[%emt 0:00:00]} dxe4 {[%emt 0:00:00]} 20. Nd2 {[%emt 0:00:00]} cxd4 {[%emt 0:00:00]} 21. exd4 {[%emt 0:00:00]} Bd5 {[%emt 0:00:00]} 22. c4 {[%emt 0:00:00]} Bc6 {[%emt 0:00:00]} 23. Nb3 {[%emt 0:00:00]} b5 {[%emt 0:00:00]} 24. Ba5 {[%emt 0:00:00]} Qd7 {[%emt 0:00:00]} 25. cxb5 {[%emt 0:00:00]} Bxb5 {[%emt 0:00:00]} 26. Rfd1 {[%emt 0:00:00]} Nd5 {[%emt 0:00:00]} 27. Nc5 {[%emt 0:00:00]} Qf7 {[%emt 0:00:00]} 28. Bd2 {[%emt 0:00:00]} a5 {[%emt 0:00:00]} 29. b4 {[%emt 0:00:00]} a4 {[%emt 0:00:00]} 30. g4 {[%emt 0:00:00]} fxg4 {[%emt 0:00:00]} 31. Qxg4 {[%emt 0:00:00]} Qf2+ {[%emt 0:00:00]} 32. Kh1 {[%emt 0:00:00]} Be2 {[%emt 0:00:00]} 0-1

[Event "Salon de Provence op"]
[Site "Salon de Provence FRA"]
[Date "2023.07.09"]
[Round "3.1"]
[White "Golubka, Petro"]
[Black "Omelja, Artem"]
[Result "1/2-1/2"]
[ECO "D94"]
[WhiteElo "2383"]
[BlackElo "2457"]
[WhiteFideId "-1"]
[BlackFideId "-1"]
[PlyCount "84"]
[GameId "2129404707693865"]
[EventDate "2023.07.08"]
[EventType "swiss"]
[EventRounds "9"]
[EventCountry "FRA"]
[SourceTitle "10 Days #729"]
[Source "ChessMix"]
[SourceDate "2023.07.20"]
[SourceVersion "1"]
[SourceVersionDate "2023.07.20"]
[SourceQuality "1"]
[TimeControl "1"]

1. d4 {[%emt 0:00:00]} d5 {[%emt 0:00:00]} 2. c4 {[%emt 0:00:00]} c6 {[%emt 0:00:00]} 3. Nc3 {[%emt 0:00:00]} Nf6 {[%emt 0:00:00]} 4. Nf3 {[%emt 0:00:00]} g6 {[%emt 0:00:00]} 5. e3 {[%emt 0:00:00]} Bg7 {[%emt 0:00:00]} 6. Bd3 {[%emt 0:00:00]} O-O {[%emt 0:00:00]} 7. O-O {[%emt 0:00:00]} Bg4 {[%emt 0:00:00]} 8. h3 {[%emt 0:00:00]} Bxf3 {[%emt 0:00:00]} 9. Qxf3 {[%emt 0:00:00]} e6 {[%emt 0:00:00]} 10. Rd1 {[%emt 0:00:00]} Nbd7 {[%emt 0:00:00]} 11. a4 {[%emt 0:00:00]} a5 {[%emt 0:00:00]} 12. b3 {[%emt 0:00:00]} Re8 {[%emt 0:00:00]} 13. Bb2 {[%emt 0:00:00]} Nb8 {[%emt 0:00:00]} 14. Rac1 {[%emt 0:00:00]} Na6 {[%emt 0:00:00]} 15. Qe2 {[%emt 0:00:00]} Nb4 {[%emt 0:00:00]} 16. Ba3 {[%emt 0:00:00]} Bf8 {[%emt 0:00:00]} 17. Bxb4 {[%emt 0:00:00]} Bxb4 {[%emt 0:00:00]} 18. Qc2 {[%emt 0:00:00]} Rc8 {[%emt 0:00:00]} 19. Ne2 {[%emt 0:00:00]} Ba3 {[%emt 0:00:00]} 20. Rb1 {[%emt 0:00:00]} Bf8 {[%emt 0:00:00]} 21. e4 {[%emt 0:00:00]} dxe4 {[%emt 0:00:00]} 22. Bxe4 {[%emt 0:00:00]} Nxe4 {[%emt 0:00:00]} 23. Qxe4 {[%emt 0:00:00]} Bg7 {[%emt 0:00:00]} 24. Rd3 {[%emt 0:00:00]} Rc7 {[%emt 0:00:00]} 25. Rbd1 {[%emt 0:00:00]} Rd7 {[%emt 0:00:00]} 26. g3 {[%emt 0:00:00]} Qe7 {[%emt 0:00:00]} 27. Kg2 {[%emt 0:00:00]} Red8 {[%emt 0:00:00]} 28. Qe3 {[%emt 0:00:00]} Bf6 {[%emt 0:00:00]} 29. h4 {[%emt 0:00:00]} h5 {[%emt 0:00:00]} 30. Kf1 {[%emt 0:00:00]} Kg7 {[%emt 0:00:00]} 31. Ng1 {[%emt 0:00:00]} c5 {[%emt 0:00:00]} 32. Nf3 {[%emt 0:00:00]} b6 {[%emt 0:00:00]} 33. d5 {[%emt 0:00:00]} exd5 {[%emt 0:00:00]} 34. Qxe7 {[%emt 0:00:00]} Rxe7 {[%emt 0:00:00]} 35. Rxd5 {[%emt 0:00:00]} Rxd5 {[%emt 0:00:00]} 36. Rxd5 {[%emt 0:00:00]} Re6 {[%emt 0:00:00]} 37. Ng5 {[%emt 0:00:00]} Bxg5 {[%emt 0:00:00]} 38. hxg5 {[%emt 0:00:00]} Kf8 {[%emt 0:00:00]} 39. Rd8+ {[%emt 0:00:00]} Ke7 {[%emt 0:00:00]} 40. Rb8 {[%emt 0:00:00]} Rd6 {[%emt 0:00:00]} 41. Rb7+ {[%emt 0:00:00]} Ke6 {[%emt 0:00:00]} 42. Ke2 {[%emt 0:00:03]} Ke5 {[%emt 0:00:00]} 1/2-1/2

[Event "Salon de Provence op"]
[Site "Salon de Provence FRA"]
[Date "2023.07.10"]
[Round "4.2"]
[White "Peric, Slavisa"]
[Black "Golubka, Petro"]
[Result "0-1"]
[ECO "E60"]
[WhiteElo "2003"]
[BlackElo "2383"]
[WhiteFideId "-1"]
[BlackFideId "-1"]
[PlyCount "92"]
[GameId "2129404707693874"]
[EventDate "2023.07.08"]
[EventType "swiss"]
[EventRounds "9"]
[EventCountry "FRA"]
[SourceTitle "10 Days #729"]
[Source "ChessMix"]
[SourceDate "2023.07.20"]
[SourceVersion "1"]
[SourceVersionDate "2023.07.20"]
[SourceQuality "1"]
[TimeControl "1"]

1. d4 {[%emt 0:00:00]} Nf6 {[%emt 0:00:00]} 2. Nf3 {[%emt 0:00:00]} g6 {[%emt 0:00:00]} 3. c4 {[%emt 0:01:05]} Bg7 {[%emt 0:00:00]} 4. e3 {[%emt 0:00:00]} O-O {[%emt 0:00:00]} 5. Nbd2 {[%emt 0:00:00]} c5 {[%emt 0:00:00]} 6. dxc5 {[%emt 0:00:00]} Na6 {[%emt 0:00:00]} 7. Nb3 {[%emt 0:00:00]} Qc7 {[%emt 0:00:00]} 8. Bd2 {[%emt 0:00:00]} Ne4 {[%emt 0:00:00]} 9. Qc2 {[%emt 0:00:00]} f5 {[%emt 0:00:00]} 10. Ba5 {[%emt 0:00:00]} b6 {[%emt 0:00:00]} 11. cxb6 {[%emt 0:00:00]} axb6 {[%emt 0:00:00]} 12. Bd2 {[%emt 0:00:00]} Bb7 {[%emt 0:00:00]} 13. Be2 {[%emt 0:00:00]} Nxd2 {[%emt 0:00:00]} 14. Qxd2 {[%emt 0:00:00]} Nc5 {[%emt 0:00:00]} 15. Nxc5 {[%emt 0:00:00]} bxc5 {[%emt 0:00:00]} 16. O-O {[%emt 0:00:00]} Rfb8 {[%emt 0:00:00]} 17. Rad1 {[%emt 0:00:00]} d6 {[%emt 0:00:00]} 18. b3 {[%emt 0:00:00]} Bf6 {[%emt 0:09:29]} 19. Bd3 {[%emt 0:00:00]} Qa5 {[%emt 0:00:00]} 20. Qxa5 {[%emt 0:00:00]} Rxa5 {[%emt 0:00:00]} 21. Bb1 {[%emt 0:00:00]} Bc3 {[%emt 0:00:00]} 22. Ne1 {[%emt 0:00:00]} Rba8 {[%emt 0:00:00]} 23. Nd3 {[%emt 0:00:00]} Kf7 {[%emt 0:00:00]} 24. f3 {[%emt 0:00:00]} e6 {[%emt 0:00:00]} 25. Nf4 {[%emt 0:00:00]} Ke7 {[%emt 0:00:00]} 26. Rd3 {[%emt 0:00:00]} Be5 {[%emt 0:00:00]} 27. Ne2 {[%emt 0:00:00]} g5 {[%emt 0:00:00]} 28. Rfd1 {[%emt 0:00:00]} Rd8 {[%emt 0:00:00]} 29. Kf2 {[%emt 0:00:00]} h6 {[%emt 0:00:00]} 30. h3 {[%emt 0:00:00]} Bc6 {[%emt 0:00:00]} 31. Nc3 {[%emt 0:00:00]} h5 {[%emt 0:00:00]} 32. g3 {[%emt 0:00:00]} g4 {[%emt 0:00:00]} 33. hxg4 {[%emt 0:00:00]} hxg4 {[%emt 0:00:00]} 34. f4 {[%emt 0:00:00]} Bxc3 {[%emt 0:00:00]} 35. Rxc3 {[%emt 0:00:00]} Rh8 {[%emt 0:00:00]} 36. e4 {[%emt 0:00:00]} fxe4 {[%emt 0:00:00]} 37. Rcc1 {[%emt 0:00:00]} Rh3 {[%emt 0:00:00]} 38. Re1 {[%emt 0:00:00]} d5 {[%emt 0:00:00]} 39. f5 {[%emt 0:00:00]} exf5 {[%emt 0:00:00]} 40. cxd5 {[%emt 0:00:00]} Bxd5 {[%emt 0:00:00]} 41. Rg1 {[%emt 0:00:00]} Ke6 {[%emt 0:00:00]} 42. Ke3 {[%emt 0:00:00]} Ke5 {[%emt 0:00:00]} 43. Rcf1 {[%emt 0:00:00]} c4 {[%emt 0:00:00]} 44. bxc4 {[%emt 0:00:00]} Ra3+ {[%emt 0:00:00]} 45. Kd2 {[%emt 0:00:00]} Rh2+ {[%emt 0:00:00]} 46. Kd1 {[%emt 0:00:00]} Bxc4 {[%emt 0:00:00]} 0-1

[Event "Salon de Provence op"]
[Site "Salon de Provence FRA"]
[Date "2023.07.11"]
[Round "5.2"]
[White "Golubka, Petro"]
[Black "Petrosyan, Armen"]
[Result "1-0"]
[ECO "B10"]
[WhiteElo "2383"]
[BlackElo "2364"]
[WhiteFideId "-1"]
[BlackFideId "-1"]
[PlyCount "101"]
[GameId "2129404707693882"]
[EventDate "2023.07.08"]
[EventType "swiss"]
[EventRounds "9"]
[EventCountry "FRA"]
[SourceTitle "10 Days #729"]
[Source "ChessMix"]
[SourceDate "2023.07.20"]
[SourceVersion "1"]
[SourceVersionDate "2023.07.20"]
[SourceQuality "1"]
[TimeControl "1"]

1. e4 {[%emt 0:00:00]} c6 {[%emt 0:00:00]} 2. c4 {[%emt 0:00:00]} d5 {[%emt 0:00:00]} 3. exd5 {[%emt 0:00:00]} cxd5 {[%emt 0:00:00]} 4. cxd5 {[%emt 0:00:00]} Nf6 {[%emt 0:00:00]} 5. Qa4+ {[%emt 0:00:00]} Nbd7 {[%emt 0:00:00]} 6. Nc3 {[%emt 0:00:00]} g6 {[%emt 0:00:00]} 7. Nf3 {[%emt 0:00:00]} Bg7 {[%emt 0:00:00]} 8. Bc4 {[%emt 0:00:00]} O-O {[%emt 0:00:00]} 9. d3 {[%emt 0:00:00]} a6 {[%emt 0:00:00]} 10. Qa3 {[%emt 0:00:00]} b6 {[%emt 0:00:00]} 11. O-O {[%emt 0:00:00]} Bb7 {[%emt 0:00:00]} 12. Re1 {[%emt 0:00:00]} b5 {[%emt 0:00:00]} 13. Bb3 {[%emt 0:00:00]} Re8 {[%emt 0:00:00]} 14. Qb4 {[%emt 0:00:00]} a5 {[%emt 0:00:00]} 15. Qxb5 {[%emt 0:00:00]} Ba6 {[%emt 0:00:00]} 16. Qc6 {[%emt 0:00:00]} Bxd3 {[%emt 0:00:00]} 17. Rd1 {[%emt 0:00:00]} Bf5 {[%emt 0:00:00]} 18. d6 {[%emt 0:00:00]} Rc8 {[%emt 0:00:00]} 19. Qb5 {[%emt 0:00:00]} Rb8 {[%emt 0:00:00]} 20. dxe7 {[%emt 0:00:00]} Qxe7 {[%emt 0:00:00]} 21. Qxa5 {[%emt 0:00:00]} Nc5 {[%emt 0:00:00]} 22. Bg5 {[%emt 0:00:00]} Nxb3 {[%emt 0:00:00]} 23. axb3 {[%emt 0:00:00]} Qb7 {[%emt 0:00:00]} 24. Nd4 {[%emt 0:00:00]} Bd7 {[%emt 0:00:00]} 25. Qa7 {[%emt 0:00:00]} h6 {[%emt 0:00:00]} 26. Bf4 {[%emt 0:00:00]} Qxa7 {[%emt 0:00:00]} 27. Rxa7 {[%emt 0:00:00]} Rb4 {[%emt 0:00:00]} 28. h3 {[%emt 0:00:00]} Bc8 {[%emt 0:00:00]} 29. Ra8 {[%emt 0:00:00]} Bb7 {[%emt 0:00:00]} 30. Ra4 {[%emt 0:00:00]} Rb6 {[%emt 0:00:00]} 31. Bc7 {[%emt 0:00:00]} Ra6 {[%emt 0:00:00]} 32. Rxa6 {[%emt 0:00:00]} Bxa6 {[%emt 0:00:00]} 33. b4 {[%emt 0:00:14]} Bb7 {[%emt 0:00:00]} 34. b5 {[%emt 0:00:00]} Rc8 {[%emt 0:00:00]} 35. b6 {[%emt 0:00:00]} Ne8 {[%emt 0:00:00]} 36. Ndb5 {[%emt 0:00:00]} Kf8 {[%emt 0:00:00]} 37. Na4 {[%emt 0:00:00]} Nxc7 {[%emt 0:00:00]} 38. bxc7 {[%emt 0:00:00]} Be5 {[%emt 0:00:00]} 39. Rd8+ {[%emt 0:00:00]} Ke7 {[%emt 0:00:00]} 40. Rxc8 {[%emt 0:00:00]} Bxc8 {[%emt 0:00:00]} 41. Nb6 {[%emt 0:00:00]} Bd7 {[%emt 0:00:00]} 42. c8=Q {[%emt 0:00:45]} Bxc8 {[%emt 0:00:00]} 43. Nxc8+ {[%emt 0:00:00]} Kd7 {[%emt 0:00:00]} 44. Nb6+ {[%emt 0:00:00]} Kc6 {[%emt 0:00:00]} 45. Nc4 {[%emt 0:00:00]} Bg7 {[%emt 0:00:00]} 46. Nbd6 {[%emt 0:00:00]} f5 {[%emt 0:00:00]} 47. b3 {[%emt 0:00:00]} Kc5 {[%emt 0:00:00]} 48. Nf7 {[%emt 0:00:00]} Kb4 {[%emt 0:00:00]} 49. Nce5 {[%emt 0:00:00]} g5 {[%emt 0:00:00]} 50. Nc6+ {[%emt 0:00:00]} Kxb3 {[%emt 0:00:00]} 51. Ne7 {[%emt 0:00:00]} 1-0

[Event "Salon de Provence op"]
[Site "Salon de Provence FRA"]
[Date "2023.07.11"]
[Round "6.1"]
[White "Roganova, Maxime"]
[Black "Golubka, Petro"]
[Result "0-1"]
[ECO "C01"]
[WhiteElo "1773"]
[BlackElo "2383"]
[WhiteFideId "-1"]
[BlackFideId "-1"]
[PlyCount "60"]
[GameId "2129404707693889"]
[EventDate "2023.07.08"]
[EventType "swiss"]
[EventRounds "9"]
[EventCountry "FRA"]
[SourceTitle "10 Days #729"]
[Source "ChessMix"]
[SourceDate "2023.07.20"]
[SourceVersion "1"]
[SourceVersionDate "2023.07.20"]
[SourceQuality "1"]
[TimeControl "1"]

1. e4 {[%emt 0:00:00]} e6 {[%emt 0:00:00]} 2. d4 {[%emt 0:00:00]} d5 {[%emt 0:00:00]} 3. Bd3 {[%emt 0:00:00]} c5 {[%emt 0:00:00]} 4. exd5 {[%emt 0:00:00]} exd5 {[%emt 0:00:00]} 5. dxc5 {[%emt 0:00:00]} Bxc5 {[%emt 0:00:00]} 6. Nf3 {[%emt 0:00:00]} Nf6 {[%emt 0:00:00]} 7. h3 {[%emt 0:00:00]} O-O {[%emt 0:00:00]} 8. O-O {[%emt 0:00:00]} Nc6 {[%emt 0:00:00]} 9. a3 {[%emt 0:00:00]} Ne4 {[%emt 0:00:00]} 10. Nbd2 {[%emt 0:00:00]} Bf5 {[%emt 0:00:00]} 11. Nb3 {[%emt 0:00:00]} Bb6 {[%emt 0:00:00]} 12. c3 {[%emt 0:00:00]} Qf6 {[%emt 0:00:00]} 13. Bc2 {[%emt 0:00:00]} Rad8 {[%emt 0:00:00]} 14. Nbd4 {[%emt 0:00:00]} Bc8 {[%emt 0:00:00]} 15. Be3 {[%emt 0:00:00]} h6 {[%emt 0:00:00]} 16. Qd3 {[%emt 0:00:00]} Qg6 {[%emt 0:00:00]} 17. Ne2 {[%emt 0:00:00]} Bc7 {[%emt 0:00:00]} 18. Kh1 {[%emt 0:00:00]} Bf5 {[%emt 0:00:00]} 19. Nh4 {[%emt 0:00:00]} Nxf2+ {[%emt 0:00:00]} 20. Rxf2 {[%emt 0:00:00]} Bxd3 {[%emt 0:00:00]} 21. Nxg6 {[%emt 0:00:00]} Bxg6 {[%emt 0:00:00]} 22. Ba4 {[%emt 0:00:00]} Ne5 {[%emt 0:00:00]} 23. Nf4 {[%emt 0:00:00]} Be4 {[%emt 0:00:00]} 24. Bd4 {[%emt 0:00:00]} Nc4 {[%emt 0:00:00]} 25. Nh5 {[%emt 0:00:00]} Bb6 {[%emt 0:00:00]} 26. Rd1 {[%emt 0:00:00]} Rd6 {[%emt 0:00:00]} 27. Kh2 {[%emt 0:00:00]} Ne3 {[%emt 0:00:00]} 28. Bxe3 {[%emt 0:00:00]} Bxe3 {[%emt 0:00:00]} 29. Re2 {[%emt 0:00:00]} Bb6 {[%emt 0:00:00]} 30. Rxe4 {[%emt 0:00:00]} dxe4 {[%emt 0:00:00]} 0-1